bitfinex/quotes_BTCUSD_20240717
["timestamp","ask_amount","ask_price","bid_price","bid_amount"]
[1721174400873,0.24926527,65181.0,65180.0,0.086696]
[1721174401293,0.22629634,65181.0,65180.0,0.18439416]
[1721174401704,0.15738174,65181.0,65180.0,0.18439416]
[1721174401909,0.22629634,65181.0,65180.0,0.18439416]
[1721174402102,0.15738174,65181.0,65180.0,0.18439416]
[1721174402312,0.15738174,65181.0,65180.0,0.021196]
[1721174402313,0.20332315,65181.0,65180.0,0.021196]
[1721174402849,0.15738174,65181.0,65180.0,0.021196]
[1721174403047,0.52238174,65181.0,65180.0,0.021196]
[1721174403252,0.71277071,65181.0,65180.0,0.021196]
[1721174404345,0.76277071,65181.0,65180.0,0.021196]
[1721174404777,0.71277071,65181.0,65180.0,0.021196]
[1721174405103,0.91786819,65181.0,65180.0,0.021196]
[1721174405303,0.05,65180.0,65179.0,0.009196]
[1721174405502,0.64376329,65180.0,65179.0,0.009196]
[1721174405925,0.44844916,65180.0,65179.0,0.009196]
[1721174406143,0.4891889,65180.0,65179.0,0.009196]
[1721174406353,0.4661889,65180.0,65179.0,0.009196]
[1721174406589,0.60402302,65180.0,65179.0,0.009196]
[1721174407012,0.4661889,65180.0,65179.0,0.009196]
[1721174407435,0.4701889,65180.0,65179.0,0.009196]
[1721174407946,0.3262889,65180.0,65179.0,0.009196]
[1721174408367,0.3272889,65180.0,65179.0,0.009196]
[1721174409116,0.3274637,65180.0,65179.0,0.009196]
[1721174409511,0.30142549,65180.0,65179.0,0.009196]
[1721174409933,0.15938174,65180.0,65179.0,0.009196]
[1721174410207,0.15938174,65180.0,65179.0,0.084196]
[1721174410413,0.15938174,65180.0,65179.0,0.146096]
[1721174411163,0.15438174,65180.0,65179.0,0.146096]
[1721174411559,0.16038174,65180.0,65179.0,0.146096]
[1721174411907,0.15438174,65180.0,65179.0,0.146096]
[1721174412117,0.15538174,65180.0,65179.0,0.146096]
[1721174412343,0.001,65180.0,65179.0,0.24170261]
[1721174412554,0.001,65180.0,65179.0,0.41910569]
[1721174412751,0.001,65180.0,65179.0,0.52091902]
[1721174413108,0.001,65180.0,65179.0,0.51910569]
[1721174413577,0.00084,65188.0,65187.0,0.6936]
[1721174413775,0.00084,65188.0,65187.0,0.91659768]
[1721174414208,0.04908667,65194.0,65187.0,0.91659768]
[1721174414414,0.80119938,65217.0,65187.0,0.91659768]
[1721174414415,0.00095764,65214.0,65203.0,0.5]
[1721174414554,0.00095764,65210.0,65204.0,0.1255]
[1721174414755,0.0697504,65222.0,65204.0,0.12856702]
[1721174414756,0.15438174,65209.0,65204.0,0.12856702]
[1721174414964,0.15438174,65209.0,65204.0,0.1255]
[1721174415388,0.04984746,65218.0,65205.0,0.111]
[1721174415597,0.2042292,65218.0,65207.0,0.05]
[1721174415745,0.15438174,65218.0,65208.0,0.0625]
[1721174416152,0.23155653,65217.0,65208.0,0.0625]
[1721174416352,0.23155653,65213.0,65199.0,0.0773]
[1721174416552,0.23155653,65213.0,65196.0,0.0628]
[1721174416553,0.2233,65208.0,65196.0,0.0628]
[1721174416812,0.07717479,65198.0,65197.0,0.00181333]
[1721174417013,0.15438174,65198.0,65197.0,0.0995885]
[1721174417408,0.15438174,65198.0,65188.0,0.0628]
[1721174417619,0.0787,65206.0,65199.0,0.001]
[1721174417768,0.00095764,65205.0,65199.0,0.001]
[1721174417969,0.2233,65208.0,65199.0,0.001]
[1721174417970,0.15438174,65204.0,65199.0,0.001]
[1721174418361,0.00095764,65203.0,65197.0,0.007]
[1721174418573,0.15438174,65202.0,65197.0,0.007]
[1721174418795,0.15438174,65202.0,65200.0,0.0628]
[1721174419025,0.15438174,65202.0,65201.0,0.00507508]
[1721174419246,0.001,65206.0,65201.0,0.10466358]
[1721174419453,0.15538174,65206.0,65202.0,0.00181333]
[1721174419652,0.15538174,65206.0,65202.0,0.00507408]
[1721174419895,0.15538174,65206.0,65200.0,0.0628]
[1721174419896,0.001,65205.0,65200.0,0.0628]
[1721174420146,0.001,65205.0,65203.0,0.00507309]
[1721174420353,0.15438174,65206.0,65200.0,0.0628]
[1721174420563,0.15438174,65204.0,65193.0,0.0829]
[1721174420758,0.15438174,65204.0,65202.0,0.005]
[1721174420983,0.00095764,65203.0,65202.0,0.005]
[1721174421183,0.15533938,65203.0,65193.0,0.0829]
[1721174421402,0.15438174,65202.0,65193.0,0.0829]
[1721174421607,0.15438174,65202.0,65194.0,0.00181333]
[1721174421608,0.00095764,65201.0,65194.0,0.00181333]
[1721174421813,0.15438174,65202.0,65194.0,0.00181333]
[1721174422121,0.15438174,65202.0,65193.0,0.0829]
[1721174422122,0.00095764,65201.0,65193.0,0.0829]
[1721174422326,0.00095764,65201.0,65200.0,0.005]
[1721174422524,0.00095764,65204.0,65200.0,0.005]
[1721174422962,0.15438174,65203.0,65193.0,0.0829]
[1721174423169,0.00095764,65202.0,65193.0,0.0829]
[1721174423395,0.15438174,65201.0,65193.0,0.0879]
[1721174423592,0.15438174,65201.0,65193.0,0.0889]
[1721174423888,0.15438174,65201.0,65193.0,0.0839]
[1721174424096,0.15438174,65201.0,65193.0,0.0889]
[1721174424297,0.15438174,65201.0,65193.0,0.0879]
[1721174424444,0.15438174,65201.0,65194.0,0.00181333]
[1721174424650,0.15538174,65201.0,65194.0,0.00181333]
[1721174424874,0.15638174,65201.0,65194.0,0.00181333]
[1721174426034,0.15638174,65201.0,65193.0,0.0889]
[1721174426238,0.2233,65199.0,65193.0,0.001]
[1721174426442,0.2233,65199.0,65194.0,0.005]
[1721174426443,0.00095764,65197.0,65194.0,0.005]
[1721174426690,0.15438174,65196.0,65194.0,0.005]
[1721174426904,0.00095764,65195.0,65194.0,0.001]
[1721174427109,0.15438174,65195.0,65186.0,0.09401234]
[1721174427336,0.083,65200.0,65193.0,0.005]
[1721174427337,0.15438174,65194.0,65193.0,0.005]
[1721174427938,0.15438174,65194.0,65185.0,0.07898812]
[1721174428141,0.001,65195.0,65186.0,0.001]
[1721174428340,0.15538174,65195.0,65187.0,0.00181333]
[1721174429257,0.15638174,65195.0,65187.0,0.00181333]
[1721174429902,0.15638174,65195.0,65186.0,0.006]
[1721174429903,0.001,65194.0,65193.0,0.001]
[1721174430235,0.15538174,65195.0,65187.0,0.10358263]
[1721174430473,0.002,65195.0,65189.0,0.0653]
[1721174430660,0.002,65195.0,65194.0,0.76694]
[1721174430857,0.001,65195.0,65194.0,0.86552263]
[1721174431289,0.00084,65204.0,65194.0,0.86552263]
[1721174431290,0.00179764,65204.0,65200.0,0.153372]
[1721174431425,0.00179764,65204.0,65193.0,0.006]
[1721174431426,0.15438174,65203.0,65193.0,0.006]
[1721174431626,0.153377,65199.0,65195.0,0.153384]
[1721174431942,0.15533938,65198.0,65195.0,0.153384]
[1721174432145,0.15533938,65198.0,65194.0,0.153388]
[1721174432548,0.153382,65197.0,65194.0,0.00181333]
[1721174432780,0.001,65195.0,65194.0,0.005]
[1721174432949,0.15538174,65195.0,65194.0,0.158388]
[1721174433151,0.15538174,65195.0,65194.0,0.001]
[1721174433552,0.15538174,65195.0,65194.0,0.006]
[1721174433754,0.15538174,65195.0,65194.0,0.007]
[1721174433916,0.15438174,65195.0,65194.0,0.005]
[1721174434151,0.15438174,65195.0,65193.0,0.15339]
[1721174434349,0.15638174,65195.0,65194.0,0.006]
[1721174435585,0.15538174,65195.0,65194.0,0.001]
[1721174435977,0.30976674,65195.0,65194.0,0.001]
[1721174436178,0.30976674,65195.0,65193.0,0.005]
[1721174436179,0.153388,65194.0,65193.0,0.005]
[1721174436383,0.30776974,65194.0,65190.0,0.00181333]
[1721174436624,0.15438174,65193.0,65190.0,0.00181333]
[1721174436799,0.153395,65191.0,65190.0,0.00181333]
[1721174437021,0.30777674,65191.0,65186.0,0.09787604]
[1721174437361,0.15438174,65190.0,65186.0,0.09606271]
[1721174437921,0.15438174,65190.0,65187.0,0.00181333]
[1721174438120,0.15438174,65190.0,65186.0,0.153405]
[1721174438747,0.15438174,65190.0,65187.0,0.153404]
[1721174438952,0.00095764,65189.0,65187.0,0.153404]
[1721174439161,0.15438174,65188.0,65187.0,0.153404]
[1721174439362,0.15438174,65188.0,65187.0,0.24946671]
[1721174439565,0.15438174,65188.0,65187.0,0.09606271]
[1721174439763,0.15438174,65188.0,65187.0,0.10106271]
[1721174440251,0.15438174,65188.0,65187.0,0.09606271]
[1721174440498,0.15538174,65188.0,65187.0,0.09477931]
[1721174440633,0.15638174,65188.0,65187.0,0.09977931]
[1721174443827,0.15638174,65188.0,65187.0,0.006]
[1721174444751,0.29908174,65188.0,65187.0,0.006]
[1721174444977,0.52238174,65188.0,65187.0,0.006]
[1721174445379,0.59052719,65188.0,65187.0,0.006]
[1721174445575,0.75928677,65188.0,65187.0,0.001]
[1721174445778,0.61458677,65188.0,65179.0,0.009196]
[1721174445985,0.61458677,65188.0,65180.0,0.0008599]
[1721174445986,0.51848174,65181.0,65180.0,0.0008599]
[1721174446187,0.58662719,65181.0,65180.0,0.0008599]
[1721174446389,0.63724789,65181.0,65180.0,0.0008599]
[1721174446616,0.7111037,65181.0,65180.0,0.0008599]
[1721174447012,0.77979687,65181.0,65180.0,0.0008599]
[1721174447220,0.75689188,65181.0,65180.0,0.0008599]
[1721174447494,0.76689188,65181.0,65180.0,0.0008599]
[1721174447721,0.6981037,65181.0,65180.0,0.0008599]
[1721174447927,0.76678651,65181.0,65180.0,0.0008599]
[1721174448328,0.7211037,65181.0,65180.0,0.0008599]
[1721174448496,0.78978651,65181.0,65180.0,0.0008599]
[1721174449174,0.79678651,65181.0,65180.0,0.0018599]
[1721174449385,0.90207001,65181.0,65180.0,0.0018599]
[1721174449577,0.05,65180.0,65179.0,0.009196]
[1721174449778,0.0622,65173.0,65151.0,0.07717479]
[1721174449982,0.15438174,65165.0,65163.0,0.46304871]
[1721174450177,0.15438174,65165.0,65151.0,0.07717479]
[1721174450178,0.2233,65164.0,65152.0,0.00181333]
[1721174450416,0.15438174,65163.0,65150.0,0.0783]
[1721174451101,0.15438174,65163.0,65150.0,0.15547479]
[1721174451330,0.15438174,65163.0,65149.0,0.0609]
[1721174451562,0.15438174,65160.0,65145.0,0.00181333]
[1721174451788,0.15438174,65160.0,65144.0,0.0608]
[1721174452015,0.15438174,65160.0,65139.0,0.10197508]
[1721174452016,0.15438174,65160.0,65140.0,0.00181333]
[1721174452208,0.15438174,65160.0,65139.0,0.10016175]
[1721174452381,0.15438174,65160.0,65140.0,0.00181333]
[1721174452587,0.15438174,65160.0,65159.0,0.013196]
[1721174452973,0.15438174,65160.0,65159.0,0.009196]
[1721174453360,0.15638174,65160.0,65159.0,0.012196]
[1721174453530,0.42148174,65160.0,65159.0,0.012196]
[1721174453729,0.49877739,65160.0,65159.0,0.012196]
[1721174454164,0.42148174,65160.0,65159.0,0.012196]
[1721174456136,0.42148174,65160.0,65159.0,0.007196]
[1721174456457,0.47148174,65160.0,65159.0,0.007196]
[1721174458014,0.47148174,65160.0,65137.0,0.00181333]
[1721174458015,0.1883,65157.0,65137.0,0.00181333]
[1721174458242,0.68898174,65157.0,65137.0,0.00181333]
[1721174458801,0.75797991,65157.0,65137.0,0.00181333]
[1721174459210,0.77197991,65157.0,65137.0,0.00181333]
[1721174460030,0.78397991,65157.0,65137.0,0.00181333]
[1721174460807,0.05,65156.0,65137.0,0.00181333]
[1721174461012,0.55087973,65156.0,65137.0,0.00181333]
[1721174461408,0.55087973,65156.0,65137.0,0.07898812]
[1721174461409,0.42248174,65156.0,65137.0,0.07898812]
[1721174461811,0.42248174,65156.0,65138.0,0.00181333]
[1721174462009,0.43348174,65156.0,65138.0,0.00181333]
[1721174462650,0.44748174,65156.0,65138.0,0.00181333]
[1721174464068,0.49748174,65156.0,65137.0,0.00181333]
[1721174464898,0.05,65153.0,65137.0,0.00181333]
[1721174465137,0.37768174,65148.0,65137.0,0.00181333]
[1721174465465,0.47768174,65148.0,65137.0,0.00181333]
[1721174465781,0.47768174,65148.0,65134.0,0.009196]
[1721174466192,0.53114991,65148.0,65134.0,0.009196]
[1721174466386,0.47768174,65148.0,65134.0,0.009196]
[1721174466785,0.48151851,65148.0,65134.0,0.009196]
[1721174468141,0.48351851,65148.0,65134.0,0.009196]
[1721174468546,0.48351851,65148.0,65144.0,0.0629]
[1721174469056,0.48351851,65148.0,65147.0,0.01348773]
[1721174469603,0.48351851,65148.0,65147.0,0.009196]
[1721174470425,0.56301851,65148.0,65147.0,0.009196]
[1721174471426,0.62581851,65148.0,65147.0,0.009196]
[1721174473023,0.69440036,65148.0,65147.0,0.009196]
[1721174473228,0.71740036,65148.0,65147.0,0.009196]
[1721174473580,0.76740036,65148.0,65147.0,0.009196]
[1721174473782,0.76740036,65148.0,65134.0,0.009196]
[1721174473783,0.05,65146.0,65134.0,0.009196]
[1721174473980,0.2233,65136.0,65134.0,0.009196]
[1721174474208,0.47768174,65136.0,65134.0,0.009196]
[1721174475676,0.47868174,65136.0,65134.0,0.009196]
[1721174479843,0.49320774,65136.0,65134.0,0.009196]
[1721174480230,0.47868174,65136.0,65134.0,0.009196]
[1721174481950,0.61968174,65136.0,65134.0,0.009196]
[1721174482478,0.71351293,65136.0,65128.0,0.009196]
[1721174482652,0.15438174,65129.0,65121.0,0.009196]
[1721174482832,0.2233,65123.0,65121.0,0.009196]
[1721174483227,0.47768174,65123.0,65121.0,0.009196]
[1721174484242,0.25438174,65123.0,65121.0,0.009196]
[1721174484384,0.47768174,65123.0,65122.0,0.075596]
[1721174484580,0.25438174,65123.0,65122.0,0.075596]
[1721174484921,0.25438174,65123.0,65122.0,0.08004658]
[1721174485121,0.25438174,65123.0,65122.0,0.01364658]
[1721174485918,0.25538174,65123.0,65122.0,0.01364658]
[1721174486961,0.25538174,65123.0,65122.0,0.009196]
[1721174488162,0.39868174,65123.0,65122.0,0.009196]
[1721174489352,0.42168174,65123.0,65122.0,0.009196]
[1721174489754,0.44906225,65123.0,65122.0,0.009196]
[1721174490002,0.49392481,65123.0,65122.0,0.009196]
[1721174490652,0.54392481,65123.0,65122.0,0.009196]
[1721174490855,0.57064729,65123.0,65122.0,0.009196]
[1721174491943,0.71722481,65123.0,65122.0,0.009196]
[1721174492589,0.76722481,65123.0,65122.0,0.009196]
[1721174492766,0.7170045,65123.0,65122.0,0.009196]
[1721174493574,0.67236225,65123.0,65122.0,0.009196]
[1721174494181,0.71716574,65123.0,65122.0,0.009196]
[1721174494386,0.79388231,65123.0,65122.0,0.009196]
[1721174495814,0.74907882,65123.0,65122.0,0.009196]
[1721174496038,0.52906225,65123.0,65122.0,0.009196]
[1721174496254,0.47868174,65123.0,65122.0,0.009196]
[1721174496479,0.25538174,65123.0,65122.0,0.009196]
[1721174496683,0.15538174,65123.0,65122.0,0.009196]
[1721174496897,0.15538174,65123.0,65122.0,0.2572978]
[1721174497542,0.15538174,65123.0,65122.0,0.16170123]
[1721174497750,0.001,65123.0,65122.0,0.16170123]
[1721174498214,0.002,65123.0,65122.0,0.16170123]
[1721174498603,0.04988739,65136.0,65124.0,0.0637]
[1721174498817,0.15533938,65135.0,65125.0,0.00181333]
[1721174498998,0.15533938,65135.0,65128.0,0.1446]
[1721174499374,0.15438174,65135.0,65130.0,0.0637]
[1721174499815,0.15438174,65135.0,65131.0,0.00445073]
[1721174500033,0.15638174,65135.0,65131.0,0.00445073]
[1721174500250,0.00095764,65134.0,65130.0,0.0637]
[1721174500476,0.00095764,65132.0,65130.0,0.0637]
[1721174500695,0.15438174,65131.0,65130.0,0.0637]
[1721174501377,0.00095764,65130.0,65122.0,0.009196]
[1721174501616,0.2233,65123.0,65122.0,0.009196]
[1721174501854,0.50068174,65123.0,65122.0,0.009196]
[1721174502376,0.5050551,65123.0,65122.0,0.009196]
[1721174502588,0.52410345,65123.0,65122.0,0.009196]
[1721174502805,0.6227019,65123.0,65122.0,0.014196]
[1721174503031,0.6457019,65123.0,65122.0,0.014196]
[1721174503270,0.691523,65123.0,65122.0,0.014196]
[1721174503490,0.6957019,65123.0,65122.0,0.014196]
[1721174503720,0.88655465,65123.0,65122.0,0.014196]
[1721174503938,0.7720019,65123.0,65122.0,0.014196]
[1721174504152,0.7730019,65123.0,65122.0,0.014196]
[1721174504380,0.88758293,65123.0,65122.0,0.014196]
[1721174504620,0.83758293,65123.0,65122.0,0.014196]
[1721174504848,0.7230019,65123.0,65122.0,0.014196]
[1721174505112,0.74446383,65123.0,65122.0,0.014196]
[1721174505333,0.65279663,65123.0,65122.0,0.014196]
[1721174506051,0.69864531,65123.0,65122.0,0.014196]
[1721174506275,0.65279663,65123.0,65122.0,0.014196]
[1721174506793,0.55349663,65123.0,65122.0,0.014196]
[1721174507028,0.59934971,65123.0,65122.0,0.014196]
[1721174507276,0.55349663,65123.0,65122.0,0.014196]
[1721174507494,0.57649663,65123.0,65122.0,0.014196]
[1721174507754,0.65934924,65123.0,65122.0,0.014196]
[1721174508000,0.55349663,65123.0,65122.0,0.014196]
[1721174508588,0.62221538,65123.0,65122.0,0.014196]
[1721174509155,0.62640339,65123.0,65122.0,0.014196]
[1721174509395,0.62640339,65123.0,65089.0,0.009207]
[1721174509396,0.05,65116.0,65097.0,0.0634]
[1721174509628,0.05,65116.0,65098.0,0.00181333]
[1721174509629,0.47440339,65115.0,65098.0,0.00181333]
[1721174509869,0.47440339,65115.0,65097.0,0.0634]
[1721174509870,0.47440339,65115.0,65114.0,0.004196]
[1721174510104,0.69748843,65115.0,65114.0,0.004196]
[1721174510345,0.05,65111.0,65093.0,0.009196]
[1721174510590,0.2233,65098.0,65094.0,0.46304871]
[1721174510813,0.15438174,65095.0,65093.0,0.009196]
[1721174511075,0.1,65094.0,65093.0,0.009196]
[1721174511312,0.42447279,65094.0,65093.0,0.009196]
[1721174511561,0.42076601,65094.0,65089.0,0.009207]
[1721174511799,0.00095764,65093.0,65089.0,0.009207]
[1721174512037,0.00095764,65093.0,65091.0,0.07717479]
[1721174512301,0.00095764,65093.0,65092.0,0.1392]
[1721174512533,0.10095764,65106.0,65092.0,0.23747283]
[1721174512761,0.10095764,65106.0,65092.0,0.1392]
[1721174512997,0.15438174,65105.0,65092.0,0.21637479]
[1721174513237,0.001,65093.0,65092.0,0.1392]
[1721174513482,0.15538174,65093.0,65092.0,0.23747283]
[1721174513757,0.15438174,65093.0,65092.0,0.1392]
[1721174513987,0.15438174,65093.0,65092.0,0.23747283]
[1721174514248,0.00095764,65101.0,65092.0,0.23747283]
[1721174514494,0.15438174,65100.0,65092.0,0.1392]
[1721174514719,0.00095764,65099.0,65092.0,0.1392]
[1721174514978,0.15438174,65098.0,65092.0,0.1392]
[1721174515216,0.00095764,65097.0,65092.0,0.1392]
[1721174515445,0.001,65093.0,65092.0,0.1392]
[1721174515684,0.15538174,65093.0,65092.0,0.23811556]
[1721174515929,0.15438174,65093.0,65092.0,0.1392]
[1721174516163,0.00095764,65108.0,65092.0,0.1392]
[1721174516417,0.001,65099.0,65092.0,0.1392]
[1721174516705,0.001,65093.0,65092.0,0.1392]
[1721174516959,0.001,65099.0,65092.0,0.1392]
[1721174517459,0.001,65093.0,65092.0,0.1392]
[1721174517663,0.15538174,65093.0,65092.0,0.1392]
[1721174518061,0.001,65093.0,65092.0,0.1392]
[1721174518263,0.001,65093.0,65092.0,0.23811556]
[1721174518264,0.002,65093.0,65092.0,0.23811556]
[1721174518462,0.001,65093.0,65092.0,0.23811556]
[1721174518866,0.002,65093.0,65092.0,0.23811556]
[1721174519859,0.001,65093.0,65092.0,0.23811556]
[1721174520060,0.002,65093.0,65092.0,0.23811556]
[1721174521006,0.001,65093.0,65092.0,0.23811556]
[1721174521369,0.002,65093.0,65092.0,0.24611556]
[1721174521783,0.002,65093.0,65092.0,0.24511556]
[1721174521977,0.00095764,65106.0,65092.0,0.29118765]
[1721174522186,0.00095764,65106.0,65092.0,0.20427209]
[1721174522187,0.001,65093.0,65092.0,0.20427209]
[1721174522387,0.002,65093.0,65092.0,0.30738702]
[1721174522702,0.002,65093.0,65092.0,0.30831102]
[1721174522904,0.001,65093.0,65092.0,0.29631102]
[1721174523130,0.20341911,65106.0,65092.0,0.28731102]
[1721174523333,0.00095764,65105.0,65093.0,0.00181333]
[1721174523508,0.00095764,65105.0,65094.0,0.05]
[1721174523707,0.04903737,65106.0,65098.0,0.06]
[1721174523911,0.07717479,65117.0,65099.0,0.00181333]
[1721174524275,0.25533938,65116.0,65099.0,0.0059421]
[1721174524789,0.15533938,65116.0,65099.0,0.0059421]
[1721174525205,0.003,65106.0,65099.0,0.0059421]
[1721174525429,0.003,65106.0,65104.0,0.065]
[1721174525646,0.16438174,65116.0,65105.0,0.08497144]
[1721174525848,0.16438174,65116.0,65106.0,0.05181333]
[1721174526054,0.16438174,65116.0,65106.0,0.00593652]
[1721174526055,0.17038174,65116.0,65106.0,0.00593652]
[1721174526451,0.16038174,65116.0,65106.0,0.00593652]
[1721174527435,0.15438174,65116.0,65106.0,0.00593652]
[1721174527870,0.15538174,65116.0,65106.0,0.05593652]
[1721174528305,0.15538174,65116.0,65106.0,0.06093652]
[1721174528306,0.15438174,65116.0,65106.0,0.06093652]
[1721174528476,0.04904534,65117.0,65114.0,0.00181333]
[1721174528677,0.001,65116.0,65112.0,0.1459]
[1721174529053,0.00095764,65130.0,65114.0,0.00181333]
[1721174529275,0.001,65116.0,65112.0,0.1459]
[1721174529473,0.001,65116.0,65113.0,0.00181333]
[1721174529672,0.15538174,65116.0,65112.0,0.1459]
[1721174530034,0.15438174,65115.0,65112.0,0.1459]
[1721174530165,0.00095764,65114.0,65106.0,0.0849]
[1721174530351,0.15438174,65115.0,65107.0,0.00181333]
[1721174530552,0.00095764,65114.0,65107.0,0.00181333]
[1721174530748,0.15438174,65115.0,65107.0,0.00181333]
[1721174530963,0.00095764,65114.0,65107.0,0.00181333]
[1721174531190,0.00095764,65114.0,65112.0,0.007]
[1721174531396,0.15533938,65114.0,65112.0,0.007]
[1721174531589,0.15438174,65114.0,65112.0,0.007]
[1721174531791,0.15638174,65114.0,65112.0,0.007]
[1721174531996,0.15538174,65114.0,65107.0,0.008]
[1721174532234,0.15438174,65114.0,65108.0,0.00181333]
[1721174532385,0.15438174,65114.0,65112.0,0.005]
[1721174532585,0.15538174,65114.0,65112.0,0.012]
[1721174533784,0.15438174,65114.0,65112.0,0.005]
[1721174534238,0.15438174,65114.0,65106.0,0.1421]
[1721174534442,0.15438174,65114.0,65108.0,0.005]
[1721174534601,0.15438174,65114.0,65109.0,0.00181333]
[1721174535003,0.15538174,65114.0,65109.0,0.00181333]
[1721174535203,0.15538174,65114.0,65108.0,0.012]
[1721174535410,0.001,65114.0,65112.0,0.005]
[1721174535672,0.15438174,65113.0,65112.0,0.005]
[1721174535968,0.15438174,65113.0,65101.0,0.0617]
[1721174536115,0.00095764,65112.0,65102.0,0.00181333]
[1721174536328,0.15438174,65111.0,65102.0,0.00181333]
[1721174536523,0.15438174,65111.0,65103.0,0.1536]
[1721174536730,0.153596,65106.0,65104.0,0.15541333]
[1721174536931,0.153598,65105.0,65104.0,0.00181333]
[1721174537152,0.15438174,65105.0,65095.0,0.23122]
[1721174537354,0.0825,65103.0,65096.0,0.00181333]
[1721174537697,0.153621,65096.0,65093.0,0.460877]
[1721174537824,0.15438174,65102.0,65094.0,0.307246]
[1721174537825,0.00095764,65099.0,65094.0,0.307246]
[1721174538024,0.00095764,65097.0,65093.0,0.00670175]
[1721174538228,0.153626,65093.0,65090.0,0.162839]
[1721174538427,0.30800774,65093.0,65090.0,0.009207]
[1721174538634,0.30800774,65093.0,65090.0,0.162839]
[1721174539255,0.30800774,65093.0,65090.0,0.009207]
[1721174539256,0.61525974,65093.0,65090.0,0.009207]
[1721174539729,0.92251174,65093.0,65090.0,0.009207]
[1721174539934,0.15438174,65093.0,65090.0,0.009207]
[1721174540175,0.15438174,65093.0,65090.0,0.162839]
[1721174540575,0.15538174,65093.0,65092.0,0.014924]
[1721174540778,0.15638174,65093.0,65092.0,0.025924]
[1721174541189,0.001,65093.0,65092.0,0.611609]
[1721174541402,0.002,65093.0,65092.0,0.975866]
[1721174541603,0.002,65093.0,65092.0,1.38267493]
[1721174541815,0.002,65093.0,65092.0,1.68993193]
[1721174542224,0.001,65093.0,65092.0,1.81050633]
[1721174542430,0.04927958,65110.0,65109.0,0.525965]
[1721174542629,0.15357,65117.0,65112.0,0.15358]
[1721174542777,0.15438174,65116.0,65112.0,0.153579]
[1721174543161,0.15438174,65116.0,65113.0,0.00181333]
[1721174543369,0.30795374,65116.0,65113.0,0.00181333]
[1721174543743,0.15438174,65116.0,65114.0,0.153575]
[1721174544378,0.153574,65115.0,65111.0,0.153583]
[1721174544588,0.15438174,65114.0,65111.0,0.153583]
[1721174544772,0.15438174,65114.0,65112.0,0.00181333]
[1721174544957,0.15438174,65114.0,65113.0,0.460737]
[1721174545184,0.15438174,65114.0,65113.0,0.56028893]
[1721174545338,0.003,65116.0,65115.0,0.76787]
[1721174545546,0.003,65116.0,65115.0,0.86742193]
[1721174546119,0.15738174,65116.0,65114.0,0.153575]
[1721174546317,0.15438174,65115.0,65114.0,0.153575]
[1721174546563,0.15438174,65115.0,65114.0,0.09620996]
[1721174546769,0.15438174,65115.0,65114.0,0.24978596]
[1721174547119,0.15438174,65115.0,65114.0,0.153576]
[1721174547327,0.15438174,65115.0,65113.0,0.09620996]
[1721174547522,0.15438174,65115.0,65111.0,0.153582]
[1721174547746,0.15438174,65115.0,65101.0,0.0788]
[1721174547747,1.06095174,65115.0,65114.0,0.005]
[1721174547954,1.38688699,65115.0,65114.0,0.005]
[1721174548172,0.307153,65114.0,65104.0,0.00181333]
[1721174548375,0.153595,65107.0,65103.0,0.00181333]
[1721174548625,0.4608,65104.0,65103.0,0.00181333]
[1721174548769,0.4608,65104.0,65094.0,0.370247]
[1721174548770,0.15438174,65104.0,65098.0,0.307227]
[1721174548977,0.153609,65100.0,65099.0,0.00181333]
[1721174549178,0.153609,65100.0,65093.0,0.4728]
[1721174549179,0.15438174,65100.0,65094.0,0.00181333]
[1721174549386,0.153615,65098.0,65094.0,0.00181333]
[1721174549567,0.15438174,65097.0,65094.0,0.00181333]
[1721174550662,0.153626,65093.0,65092.0,0.000924]
[1721174550873,0.30800774,65093.0,65092.0,0.000924]
[1721174551078,0.61525974,65093.0,65092.0,0.000924]
[1721174551928,0.65190534,65093.0,65092.0,0.000924]
[1721174552132,0.61625974,65093.0,65092.0,0.011924]
[1721174552479,0.92451174,65093.0,65092.0,0.025924]
[1721174554708,0.61725974,65093.0,65092.0,0.025924]
[1721174554914,0.15722174,65093.0,65092.0,0.025924]
[1721174555116,0.15722174,65093.0,65092.0,0.179552]
[1721174555340,0.15722174,65093.0,65092.0,0.27822887]
[1721174555559,0.00095764,65110.0,65107.0,0.460779]
[1721174555793,0.00095764,65116.0,65107.0,0.62005587]
[1721174556040,0.00095764,65119.0,65107.0,0.23838727]
[1721174556273,0.04592147,65121.0,65115.0,0.153573]
[1721174556274,0.15438174,65118.0,65115.0,0.153573]
[1721174556504,0.15438174,65118.0,65112.0,0.307159]
[1721174556737,0.15438174,65118.0,65116.0,0.0050965]
[1721174556958,0.15438174,65118.0,65117.0,0.1586645]
[1721174557188,0.00095764,65124.0,65117.0,0.10377237]
[1721174557415,0.15438174,65123.0,65122.0,0.153555]
[1721174557647,0.00095764,65127.0,65126.0,0.153548]
[1721174557869,0.15438174,65127.0,65126.0,0.460645]
[1721174558091,0.15438174,65127.0,65126.0,0.56525875]
[1721174558538,0.15438174,65127.0,65126.0,0.56690668]
[1721174558764,0.15438174,65127.0,65126.0,0.4673497]
[1721174559280,0.15438174,65127.0,65126.0,0.4683497]
[1721174560432,0.15438174,65127.0,65126.0,0.56690668]
[1721174560672,0.15438174,65127.0,65126.0,0.4703497]
[1721174560920,0.15438174,65127.0,65126.0,0.4733497]
[1721174561150,0.15438174,65127.0,65126.0,0.4763497]
[1721174561381,0.15438174,65127.0,65126.0,0.26280968]
[1721174561628,0.15438174,65127.0,65126.0,0.26880968]
[1721174562344,0.00084,65128.0,65127.0,0.153546]
[1721174562790,0.00084,65128.0,65127.0,0.16024938]
[1721174563034,0.15522174,65128.0,65127.0,0.00670338]
[1721174563261,0.30876474,65128.0,65127.0,0.00670338]
[1721174563511,0.153546,65127.0,65126.0,0.009]
[1721174563702,0.30792774,65127.0,65126.0,0.003]
[1721174563981,0.15438174,65127.0,65121.0,0.307119]
[1721174564190,0.15533938,65126.0,65125.0,0.15355]
[1721174564362,0.15438174,65126.0,65125.0,0.55791871]
[1721174565347,0.15438174,65126.0,65125.0,0.56391871]
[1721174565752,0.15438174,65126.0,65125.0,0.10326771]
[1721174566273,0.15438174,65126.0,65125.0,0.25681771]
[1721174566629,0.15438174,65126.0,65125.0,0.25381771]
[1721174567045,0.15438174,65126.0,65125.0,0.25581771]